bitfinex/quotes_ETHUSD_20251024
["timestamp","ask_amount","ask_price","bid_price","bid_amount"]
[1761321048268,3.4142,3898.3,3898.1,2.56534786]
[1761321048469,0.128,3898.4,3898.2,0.1146]
[1761321048702,2.242,3898.3,3898.2,0.1146]
[1761321049023,2.242,3898.3,3898.2,2.96068797]
[1761321049301,2.242,3898.3,3898.2,0.28080143]
[1761321049486,2.242,3898.3,3897.4,1.5552]
[1761321049693,2.37,3898.3,3897.7,0.128]
[1761321049889,2.37,3898.3,3897.9,2.56547872]
[1761321050091,2.37,3898.3,3897.7,2.69360989]
[1761321050901,2.37,3898.3,3897.9,2.5654338]
[1761321051204,2.37,3898.3,3897.9,0.52590437]
[1761321051504,2.37,3898.3,3897.7,0.128]
[1761321051670,2.37,3898.3,3897.7,2.69360944]
[1761321052098,2.37,3898.3,3897.8,2.56552782]
[1761321052301,2.37,3898.3,3897.7,0.128]
[1761321052302,2.37,3898.3,3897.9,2.5654808]
[1761321052910,2.37,3898.3,3897.9,2.56547749]
[1761321053118,2.37,3898.3,3898.0,0.52590739]
[1761321053716,0.001,3898.9,3898.8,2.56489176]
[1761321054016,2.0069,3898.9,3898.3,2.5651778]
[1761321054319,1.782,3898.9,3898.4,0.52450692]
[1761321054522,1.782,3898.9,3898.3,2.5652072]
[1761321054726,2.0069,3898.9,3898.4,2.56514447]
[1761321055054,2.0069,3898.9,3898.5,2.56507898]
[1761321055342,0.001,3898.9,3898.2,0.1146]
[1761321055504,3.413,3898.8,3898.6,2.56501197]
[1761321055709,3.413,3898.8,3898.7,2.56495754]
[1761321056114,0.001,3898.9,3898.8,2.56489176]
[1761321056543,2.823,3898.9,3898.8,2.56489176]
[1761321057256,0.001,3898.9,3898.8,2.56489176]
[1761321057411,3.414,3898.9,3898.8,2.93579176]
[1761321057740,3.414,3898.9,3898.8,3.53716878]
[1761321057915,3.414,3898.9,3898.8,3.16626878]
[1761321058518,0.001,3898.9,3898.8,3.53716878]
[1761321058919,3.413,3898.9,3898.8,3.53716878]
[1761321059329,3.413,3898.9,3898.8,3.16626878]
[1761321060041,0.001,3898.9,3898.8,3.16626878]
[1761321060214,3.413,3898.9,3898.8,3.16626878]
[1761321060827,0.001,3898.9,3898.8,3.16626878]
[1761321061024,3.412,3898.9,3898.8,3.16626878]
[1761321062241,3.412,3898.9,3898.8,2.56489176]
[1761321062634,3.412,3898.9,3898.2,0.1146]
[1761321062635,4.0867,3898.9,3898.2,0.1146]
[1761321062850,0.4376,3898.8,3897.9,3.82]
[1761321063052,0.98604577,3898.8,3897.5,2.56574727]
[1761321063238,0.001,3898.9,3898.7,2.67955754]
[1761321063440,0.001,3898.9,3898.8,2.93579176]
[1761321063623,0.001,3898.9,3898.8,3.06379176]
[1761321063830,0.001,3898.9,3898.8,2.69289176]
[1761321064030,3.411,3898.9,3898.8,2.69289176]
[1761321064238,0.001,3898.9,3898.8,3.21867669]
[1761321064447,1.842,3898.9,3898.8,3.58957669]
[1761321064849,1.842,3898.9,3898.8,8.72098459]
[1761321065553,0.001,3898.9,3898.8,8.72098459]
[1761321065921,0.001,3898.9,3898.8,8.35008459]
[1761321066451,3.411,3898.9,3898.8,8.72098459]
[1761321066627,3.411,3898.9,3898.8,3.21867669]
[1761321067353,3.6481,3898.9,3898.7,2.56491836]
[1761321067557,3.6481,3898.9,3898.7,2.56494308]
[1761321067759,4.2228,3898.9,3898.7,2.56494308]
[1761321067961,3.7761,3898.9,3898.8,2.56489176]
[1761321068163,3.539,3898.9,3898.8,2.56489176]
[1761321069360,3.411,3898.9,3898.8,2.56489176]
[1761321069861,3.411,3898.9,3898.8,3.09068154]
[1761321070172,3.409,3898.9,3898.8,3.09068154]
[1761321070350,3.409,3898.9,3898.8,3.21868154]
[1761321070744,0.001,3898.9,3898.8,2.69289176]
[1761321070941,3.409,3898.9,3898.8,2.69289176]
[1761321071471,3.6336,3898.9,3898.8,2.56489176]
[1761321071676,4.0803,3898.9,3898.8,2.56489176]
[1761321071827,3.409,3898.9,3898.8,2.56489176]
[1761321072254,0.0002,3898.9,3898.8,3.09068327]
[1761321072459,3.4082,3898.9,3898.8,3.21868327]
[1761321072975,4.0795,3898.9,3898.7,2.56489323]
[1761321073263,3.6328,3898.9,3898.7,2.5649339]
[1761321073435,4.0795,3898.9,3898.6,2.56501277]
[1761321073635,0.4467,3898.8,3897.9,0.002]
[1761321073931,0.5747,3898.8,3898.7,2.56495754]
[1761321074266,0.128,3898.8,3898.5,2.56507746]
[1761321074451,0.3526,3898.8,3898.7,2.56495754]
[1761321075570,3.4082,3898.9,3898.8,2.56489176]
[1761321075571,0.0002,3898.9,3898.8,2.56489176]
[1761321075871,3.4072,3898.9,3898.8,2.56489176]
[1761321076071,0.0002,3898.9,3898.8,2.56489176]
[1761321076234,3.4072,3898.9,3898.8,2.56489176]
[1761321076434,4.0785,3898.9,3898.8,2.56489176]
[1761321076868,4.0785,3898.9,3898.5,2.56505077]
[1761321077040,0.99544432,3898.8,3898.2,2.56523053]
[1761321077241,0.99544432,3898.8,3898.2,0.51326528]
[1761321077442,0.4467,3898.7,3897.9,0.002]
[1761321077653,0.4467,3898.7,3898.1,2.56534139]
[1761321077654,0.54874432,3898.6,3898.1,2.56534139]
[1761321077858,0.99544432,3898.7,3898.1,2.56534139]
[1761321078155,0.99544432,3898.6,3898.2,2.56526675]
[1761321078483,0.54874432,3898.5,3897.9,0.002]
[1761321078673,3.407,3898.4,3898.0,0.25675203]
[1761321078858,0.2248,3898.9,3898.5,2.56508792]
[1761321079056,0.2248,3898.9,3898.0,0.25675203]
[1761321079057,0.77388285,3898.9,3898.6,2.56496779]
[1761321079376,3.406,3898.8,3898.5,2.56507298]
[1761321079562,0.54908285,3898.7,3898.6,2.56501256]
[1761321080182,0.0002,3898.9,3898.8,2.56489176]
[1761321080552,3.4062,3898.9,3898.8,3.07788219]
[1761321080951,3.4062,3898.9,3898.8,2.56489176]
[1761321082000,0.0002,3898.9,3898.8,2.56489176]
[1761321082294,3.4062,3898.9,3898.8,2.56489176]
[1761321082594,4.0775,3898.9,3898.8,2.56489176]
[1761321082898,4.0775,3898.9,3898.1,0.1146]
[1761321083053,3.6308,3898.9,3898.6,2.5649839]
[1761321083257,3.6308,3898.9,3898.2,0.48648313]
[1761321083258,4.0775,3898.9,3898.2,0.48648313]
[1761321083477,4.0775,3898.9,3898.8,2.56489176]
[1761321083675,0.77492055,3898.9,3898.8,2.56489176]
[1761321083875,3.6298,3898.9,3898.8,2.56489176]
[1761321084278,4.62666112,3898.9,3898.8,2.56489176]
[1761321085199,4.62693732,3898.9,3898.2,0.48648313]
[1761321085403,0.55043732,3898.8,3898.7,2.56493687]
[1761321085761,0.99713732,3898.8,3898.7,2.56493687]
[1761321087165,0.55043732,3898.8,3898.7,2.56493687]
[1761321087491,3.5332,3898.9,3898.8,2.56489176]
[1761321087657,0.0002,3898.9,3898.8,2.56489176]
[1761321087979,0.0002,3898.9,3898.8,3.57677462]
[1761321088315,3.4042,3898.9,3898.8,3.57677462]
[1761321088499,0.0002,3898.9,3898.8,3.57677462]
[1761321088859,0.0002,3898.9,3898.8,3.20587462]
[1761321089597,0.0002,3898.9,3898.8,3.57677462]
[1761321089985,0.0002,3898.9,3898.8,3.20587462]
[1761321091192,0.0002,3898.9,3898.8,2.69289176]
[1761321091395,0.6715,3898.9,3898.8,2.56489176]
[1761321091698,3.4032,3898.9,3898.8,2.56489176]
[1761321092912,0.0002,3898.9,3898.8,2.56489176]
[1761321093210,3.2522,3898.9,3898.8,2.56489176]
[1761321093407,3.4032,3898.9,3898.8,3.07788305]
[1761321093585,3.4032,3898.9,3898.8,3.44878305]
[1761321094001,0.0002,3898.9,3898.8,3.44878305]
[1761321094211,3.4032,3898.9,3898.8,3.44878305]
[1761321095511,0.001,3899.3,3899.2,2.56462864]
[1761321095714,3.403,3899.3,3899.2,2.8210915]
[1761321095917,3.403,3899.3,3899.2,3.1919915]
[1761321096119,3.4022,3899.3,3899.2,3.1919915]
[1761321096285,3.4022,3899.3,3899.2,2.8210915]
[1761321097701,0.0002,3899.3,3899.2,2.8210915]
[1761321098583,0.0002,3899.3,3899.2,3.1919915]
[1761321099117,0.0002,3899.3,3899.2,4.7471915]
[1761321100404,0.0002,3899.3,3899.2,4.3762915]
[1761321101009,0.0002,3899.3,3899.2,4.7471915]
[1761321101402,0.0002,3899.3,3899.2,4.8751915]
[1761321102417,0.0002,3899.3,3899.2,8.6951915]
[1761321103622,0.0002,3899.3,3899.2,8.3242915]
[1761321104123,2.0422,3899.3,3898.8,0.51299129]
[1761321104325,2.0422,3899.3,3899.2,2.56462864]
[1761321104482,1.6092,3899.3,3899.1,2.56469315]
[1761321104684,0.433,3899.2,3898.4,0.002]
[1761321105390,0.433,3899.2,3898.9,2.56478331]
[1761321105589,0.433,3899.2,3898.7,2.56489923]
[1761321105813,0.2341,3898.8,3898.7,2.56489923]
[1761321106186,0.6671,3898.8,3898.7,2.56489923]
[1761321106403,0.6671,3898.8,3898.6,2.56500953]
[1761321106595,0.433,3898.7,3898.6,2.56500953]
[1761321107190,3.832,3898.7,3898.6,2.56500953]
[1761321107797,3.399,3898.7,3898.4,2.56713269]
[1761321108127,0.433,3898.6,3898.5,2.56508913]
[1761321108694,0.433,3898.6,3898.4,0.002]
[1761321108891,0.433,3898.6,3898.5,2.56508913]
[1761321109106,0.2341,3898.8,3898.6,2.56500801]
[1761321109327,3.398,3898.7,3898.6,2.56500801]
[1761321109698,0.6671,3898.8,3898.7,2.56495754]
[1761321110038,3.6321,3898.8,3898.7,2.56495754]
[1761321110220,0.433,3899.2,3898.9,2.56479509]
[1761321110423,0.0002,3899.3,3898.9,2.56479509]
[1761321110649,0.433,3899.2,3899.1,2.56469441]
[1761321110815,3.831,3899.2,3899.1,2.56469441]
[1761321112402,3.83,3899.2,3899.1,2.56469441]
[1761321112814,3.83,3899.2,3898.6,2.56499168]
[1761321113147,3.83,3899.2,3898.9,2.56476775]
[1761321113328,3.83,3899.2,3899.0,2.56472635]
[1761321113532,0.433,3899.1,3898.4,0.002]
[1761321113752,0.98301302,3899.1,3898.6,2.5649824]
[1761321113908,0.433,3899.0,3898.4,0.002]
[1761321114111,3.397,3898.9,3898.4,0.002]
[1761321114330,3.397,3898.9,3898.8,2.56489176]
[1761321114746,0.0002,3899.3,3899.2,2.56462864]
[1761321114934,3.3972,3899.3,3899.2,2.56462864]
[1761321115138,0.0002,3899.3,3899.2,2.56462864]
[1761321115339,3.3972,3899.3,3899.2,2.56462864]
[1761321115718,0.0002,3899.3,3899.2,2.56462864]
[1761321115912,3.3972,3899.3,3899.2,2.56462864]
[1761321117240,3.3972,3899.3,3899.2,3.09036752]
[1761321118030,0.0002,3899.3,3899.2,3.09036752]
[1761321118356,3.3962,3899.3,3899.2,3.09036752]
[1761321118880,3.3962,3899.3,3899.2,6.91036752]
[1761321119826,3.3962,3899.3,3899.2,3.09036752]
[1761321120357,3.3954,3899.3,3899.2,3.09036752]
[1761321120553,0.001,3899.7,3899.6,2.56436557]
[1761321120760,0.001,3899.7,3899.6,3.07724664]
[1761321120931,0.001,3899.7,3899.6,5.00334664]
[1761321121132,0.001,3899.7,3899.6,5.13134664]
[1761321123170,0.001,3899.7,3899.6,0.51288107]
[1761321123375,0.4376,3899.7,3899.6,2.56436557]
[1761321123759,0.001,3899.7,3899.6,2.56436557]
[1761321124072,3.395,3899.7,3899.6,2.56436557]
[1761321125249,3.395,3899.7,3899.6,2.93526557]
[1761321125456,3.395,3899.7,3899.6,3.26986114]
[1761321126075,0.001,3899.7,3899.6,3.64076114]
[1761321126871,0.001,3899.7,3899.6,3.26986114]
[1761321127381,0.001,3899.7,3899.6,3.64076114]
[1761321128688,0.001,3899.7,3899.6,3.26986114]
[1761321128847,0.2372,3899.7,3899.6,3.26986114]
[1761321129180,1.3988,3899.7,3899.6,2.56436557]
[1761321131505,1.3988,3899.7,3899.1,0.002]
[1761321131643,1.01104153,3899.6,3899.1,0.002]
[1761321131945,3.391,3899.5,3899.1,0.002]
[1761321132151,3.8526,3899.5,3899.1,0.002]
[1761321132379,1.1970179,3899.4,3899.1,0.002]
[1761321132785,0.4616,3899.3,3899.1,0.002]
[1761321133288,0.128,3899.2,3899.1,0.002]
[1761321133759,0.5896,3899.2,3899.1,0.002]
[1761321134370,0.128,3899.2,3899.1,2.56669441]
[1761321134570,3.391,3899.2,3899.1,2.56669441]
[1761321134772,0.128,3899.4,3899.3,2.56456287]
[1761321134948,3.519,3899.4,3899.3,2.56456287]
[1761321135148,0.701,3899.7,3899.6,2.56436557]
[1761321135357,4.092,3899.7,3899.6,2.56436557]
[1761321135579,4.5536,3899.7,3899.6,2.56436557]
[1761321135779,4.092,3899.7,3899.6,2.56436557]
[1761321136353,4.5536,3899.7,3899.6,2.56436557]
[1761321136755,4.5536,3899.7,3899.2,2.56457555]
[1761321136968,0.4616,3899.6,3899.4,2.5644797]
[1761321137169,0.4616,3899.6,3899.5,2.56443133]
[1761321138661,4.092,3899.7,3899.6,2.56436557]
[1761321138862,4.5536,3899.7,3899.6,2.56436557]
[1761321139062,4.091,3899.7,3899.6,2.56436557]
[1761321139607,4.091,3899.7,3899.1,0.002]
[1761321139608,5.51191929,3899.7,3899.1,0.002]
[1761321139759,1.01181929,3899.6,3899.1,0.002]
[1761321139959,2.5645155,3899.4,3899.1,0.002]
[1761321140192,0.55021929,3899.3,3899.1,0.002]
[1761321140390,3.389,3899.2,3899.1,0.002]
[1761321140755,4.44594815,3899.2,3899.1,0.002]
[1761321141107,4.99634799,3899.2,3899.1,0.002]
[1761321141282,0.55039984,3899.2,3899.1,2.56669441]
[1761321141589,1.01192521,3899.6,3899.2,2.56462258]
[1761321141764,3.389,3899.5,3899.3,2.56456287]
[1761321141962,3.8506,3899.5,3899.3,2.56456287]
[1761321142178,0.4616,3899.4,3899.2,2.56461048]
[1761321142386,0.4616,3899.4,3899.2,2.56460472]
[1761321142588,0.4616,3899.4,3899.1,0.002]
[1761321143190,1.01207672,3899.4,3899.1,0.002]
[1761321143590,0.4616,3899.3,3899.1,0.002]
[1761321144289,0.4608,3899.3,3899.1,0.002]
[1761321144500,0.90082767,3899.3,3899.1,0.002]
[1761321144867,0.44002767,3899.3,3899.1,0.002]
[1761321145053,0.128,3899.2,3899.1,0.002]
[1761321145262,2.56462864,3899.2,3899.1,0.002]
[1761321145596,3.11561369,3899.2,3899.1,0.002]
[1761321145887,3.88776612,3899.2,3899.1,0.002]
[1761321146390,5.03692546,3899.2,3899.1,0.002]
[1761321146961,7.09900546,3899.2,3899.1,0.002]
[1761321147275,6.41144612,3899.2,3899.1,0.002]
[1761321147988,12.41136156,3899.2,3899.1,0.002]
[1761321148390,11.72344612,3899.2,3899.1,0.002]
[1761321150792,6.41144612,3899.2,3899.1,0.002]
[1761321151000,11.72244612,3899.2,3899.1,0.002]
[1761321151493,12.63785294,3899.2,3899.1,0.002]
[1761321152276,12.63767714,3899.2,3899.1,0.002]
[1761321153100,11.72244612,3899.2,3899.1,0.002]
[1761321153312,5.90456612,3899.2,3899.1,0.002]
[1761321153495,11.72244612,3899.2,3899.1,0.002]
[1761321154614,6.41144612,3899.2,3899.1,0.002]
[1761321154995,9.79744612,3899.2,3899.1,0.002]
[1761321155386,9.92544612,3899.2,3899.1,0.002]
[1761321155787,6.03256612,3899.2,3899.1,0.002]
[1761321155992,9.41856612,3899.2,3899.1,0.002]
[1761321156187,4.79881369,3899.2,3899.1,0.002]
[1761321156394,8.18481369,3899.2,3899.1,0.002]
[1761321156699,6.08178505,3899.2,3899.1,0.002]
[1761321157302,8.64641369,3899.2,3899.1,0.002]
[1761321157809,8.65451369,3899.2,3899.1,0.002]
[1761321158625,6.62961369,3899.2,3899.1,0.002]
[1761321159298,4.06498505,3899.2,3899.1,0.002]
[1761321159695,0.67898505,3899.2,3899.1,0.002]
[1761321159894,3.513,3899.2,3899.1,0.002]
[1761321160101,4.06398505,3899.2,3899.1,0.002]
[1761321162197,7.09831369,3899.2,3899.1,0.002]
[1761321162437,7.60519369,3899.2,3899.1,0.002]
[1761321162751,9.33989815,3899.2,3899.1,0.002]
[1761321162933,8.87019815,3899.2,3899.1,0.002]
[1761321163224,2.92056951,3899.2,3899.1,0.002]
[1761321163406,5.61818505,3899.2,3899.1,0.002]
[1761321165034,4.06298505,3899.2,3899.1,0.002]
[1761321165230,4.53268505,3899.2,3899.1,0.002]
[1761321165606,4.06298505,3899.2,3899.1,0.002]
[1761321165805,7.09631369,3899.2,3899.1,0.002]
[1761321166901,1.02068505,3899.2,3899.1,0.002]
[1761321167101,3.9807,3899.2,3899.1,0.002]
[1761321167325,4.53168505,3899.2,3899.1,0.002]
[1761321168154,4.53088505,3899.2,3899.1,0.002]
[1761321168661,7.09551369,3899.2,3899.1,0.002]
[1761321169260,7.78189815,3899.2,3899.1,0.002]
[1761321170036,8.65071369,3899.2,3899.1,0.002]
[1761321170857,14.2936355,3899.2,3899.1,0.002]
[1761321171061,6.18578958,3899.2,3899.1,0.002]
[1761321171239,9.56778958,3899.2,3899.1,0.002]
[1761321172055,3.49316094,3899.2,3899.1,0.002]
[1761321172268,0.67898505,3899.2,3899.1,0.002]
[1761321172492,4.74871229,3899.2,3899.1,0.002]
[1761321172967,7.78304093,3899.2,3899.1,0.002]
[1761321173944,5.21841229,3899.2,3899.1,0.002]
[1761321174250,4.52968505,3899.2,3899.1,0.002]
[1761321175282,4.05998505,3899.2,3899.1,0.002]
[1761321175644,4.74848566,3899.2,3899.1,0.002]
[1761321176042,4.05998505,3899.2,3899.1,0.002]
[1761321176237,4.74847652,3899.2,3899.1,0.002]
[1761321176853,0.67898505,3899.2,3899.1,0.002]
[1761321177179,4.05898505,3899.2,3899.1,0.002]
[1761321177972,4.05998505,3899.2,3899.1,0.002]
[1761321178856,4.52738505,3899.2,3899.1,0.002]
[1761321179468,4.05998505,3899.2,3899.1,0.002]
[1761321179642,4.74852511,3899.2,3899.1,0.002]
[1761321179848,1.36852511,3899.2,3899.1,0.002]
[1761321180060,4.74752511,3899.2,3899.1,0.002]
[1761321183351,1.24087463,3899.2,3899.1,2.56669441]
[1761321183558,3.92998505,3899.2,3899.1,3.45254112]
[1761321184092,3.92998505,3899.2,3899.1,3.08004112]
[1761321187366,0.55198505,3899.2,3899.1,3.45254112]
[1761321187568,0.001,3899.2,3899.1,5.13574112]
[1761321187771,0.001,3899.6,3899.3,0.50688]
[1761321188096,0.001,3899.6,3899.5,4.11963133]
[1761321188389,3.378,3899.6,3899.5,4.24763133]
[1761321188553,3.378,3899.6,3899.5,4.61913133]
[1761321189484,0.001,3899.6,3899.5,4.61913133]
[1761321189653,0.001,3899.6,3899.5,5.979491]
[1761321192182,0.0002,3899.6,3899.5,5.979491]
[1761321195000,0.0002,3899.6,3899.5,1.85985967]
[1761321195205,3.3752,3899.6,3899.5,0.4995]
[1761321195424,3.3752,3899.6,3899.1,0.002]
[1761321195620,3.5032,3899.6,3899.1,0.13]
[1761321195911,3.5032,3899.6,3899.1,0.002]
[1761321196070,3.3752,3899.6,3899.1,0.002]
[1761321196276,0.128,3899.4,3899.1,0.002]
[1761321201721,0.128,3899.4,3899.1,0.3735]
[1761321202021,0.128,3899.4,3899.1,0.002]
[1761321202317,0.128,3899.4,3899.1,2.93819183]
[1761321202521,0.128,3899.4,3899.1,0.002]
[1761321204089,0.128,3899.4,3899.1,2.56667464]
[1761321204421,3.3752,3899.6,3899.1,0.002]
[1761321204717,0.128,3899.2,3899.1,0.002]
[1761321205317,3.3752,3899.6,3899.3,2.56456032]
[1761321205520,0.128,3899.5,3899.3,2.56456032]
[1761321205918,0.128,3899.5,3899.2,2.56462117]
[1761321206440,0.128,3899.5,3899.1,0.002]
[1761321206641,3.3752,3899.6,3899.3,2.56450609]
[1761321206935,3.3752,3899.6,3899.2,3.06409638]
[1761321207127,3.3752,3899.6,3899.3,2.56456269]
[1761321208236,0.0002,3899.6,3899.5,2.56443133]
[1761321208652,3.3712,3899.6,3899.5,2.56443133]
[1761321210839,3.3712,3899.6,3899.2,0.128]
[1761321211039,3.3712,3899.6,3899.3,2.56451744]
[1761321211630,3.8267,3899.6,3899.4,2.56448485]
[1761321212910,3.8267,3899.6,3899.2,2.69258958]
[1761321213237,3.3712,3899.6,3899.5,2.56443133]
[1761321214257,3.3692,3899.6,3899.5,3.06393133]
[1761321216255,3.3684,3899.6,3899.5,3.06393133]
[1761321216864,3.3684,3899.6,3899.5,2.69243133]
[1761321217664,3.3684,3899.6,3899.5,0.128]
[1761321217880,3.8003,3899.6,3899.5,2.56443133]
[1761321218084,3.3684,3899.6,3899.5,2.94887446]
[1761321218248,3.368,3899.6,3899.5,2.94887446]
[1761321218433,3.368,3899.6,3899.5,2.56443133]
[1761321219453,3.368,3899.6,3899.4,0.128]
[1761321219656,3.7999,3899.6,3899.4,0.128]
[1761321219966,3.7999,3899.6,3899.5,2.56443133]
[1761321220457,3.368,3899.6,3899.5,2.56443133]
[1761321221774,3.368,3899.6,3899.4,2.56449106]
[1761321221973,3.7999,3899.6,3899.4,2.56449106]
[1761321222473,3.7999,3899.6,3899.5,2.56443133]
[1761321222676,0.001,3899.7,3899.1,0.002]
[1761321222978,0.001,3899.7,3899.2,0.128]
[1761321222979,3.366,3899.6,3899.2,0.128]
[1761321223342,3.366,3899.6,3899.5,2.56443133]
[1761321223760,3.7979,3899.6,3899.5,2.56443133]
[1761321224742,3.366,3899.6,3899.5,2.56443133]
[1761321225768,3.366,3899.6,3899.2,2.69261589]
[1761321225769,3.7979,3899.6,3899.2,2.69261589]
[1761321225970,3.366,3899.6,3899.3,2.56453726]
[1761321226177,0.4319,3899.5,3899.4,2.5644971]
[1761321226984,0.4319,3899.5,3899.2,2.56461735]
[1761321227144,2.56462864,3899.2,3899.1,0.002]
[1761321227344,6.98769463,3899.2,3899.1,0.002]
[1761321227545,7.41959463,3899.2,3899.1,0.002]
[1761321227743,9.79428473,3899.2,3899.1,0.002]
[1761321227962,10.71236062,3899.2,3899.1,0.002]
[1761321229289,9.79428473,3899.2,3899.1,0.002]
[1761321230178,3.07164019,3899.0,3898.9,0.002]
[1761321230379,5.17802618,3899.0,3898.9,0.002]
[1761321230576,6.00261618,3899.0,3898.9,0.002]
[1761321231355,7.37675295,3899.0,3898.9,0.002]
[1761321231988,3.07177176,3898.8,3898.7,0.002]
[1761321232163,16.62490684,3898.8,3898.7,0.002]
[1761321232366,17.9724218,3898.8,3898.7,0.002]
[1761321232691,18.7919119,3898.8,3898.7,0.002]
[1761321233299,0.50688,3898.1,3896.0,0.3735]
[1761321233474,14.15018144,3898.1,3896.4,2.68406221]
[1761321233661,15.13326743,3898.1,3896.6,2.5663255]
[1761321234004,16.44058437,3898.1,3896.6,2.56631463]
[1761321234358,15.52595743,3898.1,3896.7,2.56627094]
[1761321234608,15.52595743,3898.1,3896.8,2.56818234]
[1761321234792,16.03128711,3898.1,3896.8,2.56818234]
[1761321235089,16.03128711,3898.1,3896.8,0.002]
[1761321235481,4.62749816,3898.0,3896.8,2.5682079]
[1761321235660,6.29546592,3898.0,3896.8,2.5682079]
[1761321235867,7.11495602,3898.0,3896.8,0.002]
[1761321236694,7.11495602,3898.0,3896.8,2.56817022]
[1761321237097,6.43007425,3898.0,3897.0,2.56605697]
[1761321237297,0.68488177,3898.6,3897.4,0.3715]
[1761321237464,6.15874909,3898.4,3897.4,0.3715]
[1761321237666,1.5552,3898.3,3897.4,2.56574991]
[1761321237893,1.9968,3898.3,3897.3,2.56582258]
[1761321238096,0.4416,3898.2,3897.2,0.1407]
[1761321238397,3.363,3898.1,3897.7,2.5656141]
[1761321238776,0.4416,3898.0,3897.7,2.5656141]
[1761321239129,0.4416,3898.0,3897.6,2.56567107]
[1761321239267,0.4416,3898.0,3897.7,2.56559671]
[1761321239783,3.363,3898.1,3897.8,2.56551706]
[1761321240296,3.363,3898.1,3897.7,2.56556967]
[1761321240297,3.3622,3898.1,3897.7,2.56556967]
[1761321240797,3.3622,3898.1,3897.8,2.5655369]
[1761321241293,3.362,3898.0,3897.7,2.56560758]
[1761321241804,1.5552,3898.4,3897.8,2.56552926]
[1761321242101,3.362,3898.3,3897.6,0.3715]
[1761321242260,3.362,3898.3,3898.0,2.56541816]
[1761321242673,3.362,3898.3,3897.8,2.56550035]
[1761321242901,3.362,3898.3,3897.6,2.93712419]
[1761321242902,3.362,3898.3,3897.6,0.3715]
[1761321243107,3.362,3898.3,3898.1,2.56533939]
[1761321243305,3.362,3898.3,3898.0,2.5654056]
[1761321243528,3.362,3898.3,3898.1,2.5653334]
[1761321243732,0.4416,3898.8,3898.1,2.56533717]
[1761321243929,0.4416,3898.8,3898.1,2.68053717]
[1761321243930,3.362,3898.7,3898.1,2.68053717]
[1761321244625,5.92697129,3898.7,3898.1,2.68053717]
[1761321244831,6.36857129,3898.7,3898.1,0.1152]
[1761321245018,3.00664089,3898.6,3897.9,2.56745678]
[1761321245333,9.16538998,3898.6,3897.9,2.56746287]
[1761321245498,3.00669326,3898.5,3897.9,0.002]
[1761321245907,6.15874909,3898.2,3897.9,0.002]
[1761321246114,2.56541816,3898.0,3897.9,0.002]
[1761321246661,3.00701816,3898.0,3897.9,0.002]
[1761321246833,6.36801816,3898.0,3897.9,0.002]
[1761321247430,6.49601816,3898.0,3897.9,0.002]
[1761321247814,7.00289816,3898.0,3897.9,0.002]
[1761321248329,7.55042643,3898.0,3897.9,0.002]
[1761321248528,7.00289816,3898.0,3897.9,0.002]
[1761321248731,7.55037557,3898.0,3897.9,0.002]
[1761321248931,9.10557557,3898.0,3897.9,0.002]
[1761321249641,0.50688,3897.0,3896.8,0.002]
[1761321249839,21.30529675,3896.9,3896.8,0.002]
[1761321250004,23.86737416,3896.9,3896.8,0.002]
[1761321251139,3.07328574,3896.5,3896.4,0.002]
[1761321251344,8.53596315,3896.5,3896.4,0.002]
[1761321251508,8.99536315,3896.5,3896.4,0.002]
[1761321251713,3.07354923,3896.1,3895.2,0.002]
[1761321251930,8.53622664,3896.1,3895.2,0.002]
[1761321252130,8.99562664,3896.1,3895.2,0.002]
[1761321253145,2.56694555,3895.7,3895.2,0.002]
[1761321253315,3.36,3895.6,3895.2,0.002]
[1761321253871,0.68356263,3896.6,3895.2,0.3775]
[1761321254019,1.5552,3896.4,3895.2,0.3775]
[1761321254350,1.5552,3896.4,3895.7,2.56692644]
[1761321254551,1.5552,3896.4,3895.6,2.56696832]
[1761321254919,2.56653899,3896.3,3895.6,2.56696832]
[1761321255120,2.56653899,3896.3,3895.2,0.3775]
[1761321255121,3.36,3896.2,3895.2,0.3775]
[1761321255318,3.36,3896.2,3895.5,2.56706303]
[1761321255547,6.38606134,3896.2,3895.5,2.56705832]
[1761321256147,3.8194,3896.2,3895.6,2.56698971]
[1761321256530,3.36,3896.2,3895.8,2.56681468]
[1761321257059,2.06521393,3896.8,3896.2,2.56659159]
[1761321257223,1.5552,3896.6,3896.1,0.1196]
[1761321257424,3.11376797,3896.5,3895.1,2.56930215]
[1761321257624,3.90631925,3896.4,3895.2,0.3775]
[1761321257863,3.8184,3896.4,3895.9,2.56678968]
[1761321258273,0.4594,3896.3,3896.0,2.56672512]
[1761321258568,3.359,3896.4,3896.1,2.56666888]
[1761321258773,3.359,3896.4,3896.0,2.56671092]
[1761321259247,0.54785705,3896.3,3896.0,2.56671092]
[1761321259444,0.54785705,3896.3,3895.9,2.56679169]
[1761321259646,0.128,3896.1,3895.9,2.56679169]
[1761321259848,3.359,3896.0,3895.9,2.56679169]
[1761321260266,3.359,3896.0,3895.9,3.09296402]
[1761321261249,3.359,3896.0,3895.9,2.56679169]
[1761321261456,3.359,3896.0,3895.8,2.56686543]
[1761321261972,3.359,3896.0,3895.9,2.56680099]
[1761321262278,3.359,3896.0,3895.9,2.94230099]
[1761321263877,3.359,3896.0,3895.9,2.56680099]
[1761321264252,3.3582,3896.0,3895.9,3.46847425]
[1761321265454,3.3582,3896.0,3895.9,3.09297425]
[1761321265662,3.3582,3896.0,3895.9,2.56680099]
[1761321267389,3.3582,3896.0,3895.8,0.13]
[1761321267680,3.3582,3896.0,3895.9,2.56680099]